fUSD/lending_fUSD_20260529
["ID","MTS","AMOUNT","RATE_DAILY","PERIOD"]
[423335931,1780062657000,-152.41257321,0.00030752,7]
[423335925,1780062657000,-245.72979678,0.00030752,7]
[423335948,1780062657000,-591.43456747,0.0003076,7]
[423335929,1780062657000,-390.19591139,0.00030752,7]
[423335930,1780062657000,-374.75419891,0.00030752,7]
[423335899,1780062657000,-1000.0,0.0003045,14]
[423335898,1780062657000,-150.0,0.00030449,7]
[423335901,1780062657000,-1000.0,0.00030472,14]
[423335903,1780062657000,-1000.0,0.00030569,14]
[423335905,1780062657000,-996.0,0.00030629,7]
[423335904,1780062657000,-1000.0,0.00030599,14]
[423335908,1780062657000,-1000.0,0.0003066,14]
[423335911,1780062657000,-196.63322,0.00030661,7]
[423335910,1780062657000,-1590.0,0.00030661,3]
[423335913,1780062657000,-152.46780336,0.0003067,2]
[423335912,1780062657000,-10000.0,0.00030664,2]
[423335915,1780062657000,-3134.77144865,0.000307,120]
[423335906,1780062657000,-1835.68642,0.0003063,9]
[423335917,1780062657000,-1000.0,0.00030724,14]
[423335916,1780062657000,-150.0,0.00030703,7]
[423335928,1780062657000,-505.50884792,0.00030752,7]
[423335927,1780062657000,-277.31540027,0.00030752,7]
[423335923,1780062657000,-508.23205799,0.00030752,7]
[423335920,1780062657000,-350.0,0.00030748,3]
[423335924,1780062657000,-463.58137057,0.00030752,7]
[423335921,1780062657000,-207.00428148,0.00030752,7]
[423335909,1780062657000,-1590.0,0.00030661,3]
[423335918,1780062657000,-7357.34,0.00030736,7]
[423335919,1780062657000,-210.0,0.0003074,2]
[423335922,1780062657000,-352.94021178,0.00030752,7]
[423335926,1780062657000,-440.37684611,0.00030752,7]
[423335982,1780062658000,-2554.0,0.00030839,30]
[423335983,1780062658000,-417.0,0.00030839,30]
[423335991,1780062658000,-2729.0,0.00030842,30]
[423335986,1780062658000,-838.0,0.00030839,30]
[423335988,1780062658000,-1177.0,0.00030842,30]
[423335984,1780062658000,-912.0,0.00030839,30]
[423335987,1780062658000,-1637.64399571,0.0003084,2]
[423335989,1780062658000,-1489.0,0.00030842,30]
[423335985,1780062658000,-5486.0,0.00030839,30]
[423335996,1780062658000,-476.28299495,0.00030864,7]
[423335990,1780062658000,-731.0,0.00030842,30]
[423335992,1780062658000,-162.01615878,0.00030864,7]
[423335994,1780062658000,-652.33601494,0.00030864,7]
[423335995,1780062658000,-470.19437994,0.00030864,7]
[423335998,1780062658000,-250.76218008,0.00030864,7]
[423335997,1780062658000,-559.30085767,0.00030864,7]
[423335999,1780062658000,-547.59197655,0.00030864,2]
[423335981,1780062658000,-796.7,0.00030839,7]
[423336000,1780062658000,-154.37760921,0.00030864,7]
[423335993,1780062658000,-622.37965304,0.00030864,7]
[423335979,1780062658000,-2763.0,0.00030837,30]
[423335966,1780062658000,-1154.137718,0.00030787,7]
[423335978,1780062658000,-155.0,0.00030834,3]
[423336001,1780062658000,-985.06668621,0.00030864,7]
[423335962,1780062658000,-370.54361442,0.00030777,2]
[423335957,1780062658000,-537.78051602,0.0003076,7]
[423335961,1780062658000,-617.43178064,0.00030777,7]
[423335958,1780062658000,-1000.0,0.00030775,14]
[423335960,1780062658000,-456.85404581,0.00030777,7]
[423335959,1780062658000,-348.95046792,0.00030777,7]
[423335963,1780062658000,-165.50411573,0.00030777,7]
[423335964,1780062658000,-531.04123617,0.00030777,7]
[423335965,1780062658000,-3162.59148174,0.00030787,47]
[423335967,1780062658000,-1154.137718,0.00030787,7]
[423335970,1780062658000,-1154.137718,0.00030787,7]
[423335972,1780062658000,-667.030463,0.00030787,7]
[423335969,1780062658000,-667.030463,0.00030787,7]
[423335971,1780062658000,-667.030463,0.00030787,7]
[423335974,1780062658000,-151.0,0.00030787,7]
[423335977,1780062658000,-200.0,0.000308,3]
[423335976,1780062658000,-250.0,0.000308,30]
[423335973,1780062658000,-667.030463,0.00030787,7]
[423335968,1780062658000,-1154.137718,0.00030787,7]
[423335975,1780062658000,-151.0,0.00030787,7]
[423335980,1780062658000,-340.0,0.00030837,30]
[423336005,1780062658000,-293.91397963,0.00030864,7]
[423336002,1780062658000,-302.25343837,0.00030864,7]
[423336003,1780062658000,-224.90378685,0.00030864,7]
[423336029,1780062658000,-571.91469096,0.00030864,7]
[423336025,1780062658000,-1115.70776733,0.00030864,7]
[423336036,1780062658000,-293.88995501,0.00030864,2]
[423336031,1780062658000,-166.89255691,0.00030864,7]
[423336035,1780062658000,-280.93761709,0.00030864,2]
[423336032,1780062658000,-573.35933622,0.00030864,7]
[423336034,1780062658000,-204.48231542,0.00030864,7]
[423336038,1780062658000,-460.32393047,0.00030864,7]
[423336037,1780062658000,-259.13241421,0.00030864,2]
[423336030,1780062658000,-620.38059766,0.00030864,5]
[423336039,1780062658000,-538.37520152,0.00030864,7]
[423336041,1780062658000,-348.22935332,0.00030864,7]
[423336043,1780062658000,-201.40377158,0.00030864,7]
[423336046,1780062658000,-484.55433987,0.00030864,7]
[423336047,1780062658000,-1176.50411756,0.00030867,7]
[423336044,1780062658000,-154.4990258,0.00030864,7]
[423336045,1780062658000,-219.92388746,0.00030864,7]
[423336042,1780062658000,-495.86351786,0.00030864,7]
[423336049,1780062658000,-626.51077512,0.00030869,7]
[423336004,1780062658000,-220.71003072,0.00030864,7]
[423336040,1780062658000,-249.54806209,0.00030864,7]
[423336033,1780062658000,-162.99682541,0.00030864,7]
[423336048,1780062658000,-459.06794687,0.00030869,7]
[423336027,1780062658000,-292.23308746,0.00030864,7]
[423336028,1780062658000,-224.006469,0.00030864,7]
[423336007,1780062658000,-152.29490688,0.00030864,7]
[423336006,1780062658000,-194.97431839,0.00030864,7]
[423336011,1780062658000,-243.4795262,0.00030864,7]
[423336010,1780062658000,-463.70757908,0.00030864,7]
[423336012,1780062658000,-577.58768195,0.00030864,7]
[423336009,1780062658000,-543.34099747,0.00030864,7]
[423336014,1780062658000,-617.68163511,0.00030864,7]
[423336022,1780062658000,-476.44659787,0.00030864,7]
[423336013,1780062658000,-525.14358569,0.00030864,7]
[423336008,1780062658000,-475.86844961,0.00030864,7]
[423336015,1780062658000,-361.3334021,0.00030864,5]
[423336024,1780062658000,-228.99814346,0.00030864,7]
[423336019,1780062658000,-1027.08298476,0.00030864,7]
[423336018,1780062658000,-493.00062437,0.00030864,7]
[423336017,1780062658000,-155.22549886,0.00030864,7]
[423336026,1780062658000,-865.25562702,0.00030864,7]
[423336020,1780062658000,-516.54138783,0.00030864,7]
[423336021,1780062658000,-203.0969762,0.00030864,7]
[423336023,1780062658000,-337.38000991,0.00030864,7]
[423336016,1780062658000,-597.32122579,0.00030864,7]
[423336082,1780062659000,-200.0,0.00031096,2]
[423336076,1780062659000,-250.0,0.00031,2]
[423336074,1780062659000,-300.0,0.00030986,8]
[423336078,1780062659000,-283.61792291,0.00031,120]
[423336080,1780062659000,-350.0,0.00031048,5]
[423336084,1780062659000,-3000.0,0.0003116,60]
[423336079,1780062659000,-152.0,0.00031023,14]
[423336075,1780062659000,-171.734091,0.00030997,7]
[423336077,1780062659000,-701.86967386,0.00031,2]
[423336081,1780062659000,-157.0,0.0003108,2]
[423336090,1780062659000,-513.56663802,0.00031188,30]
[423336085,1780062659000,-183.3,0.00031177,120]
[423336087,1780062659000,-500.0,0.00031188,30]
[423336088,1780062659000,-500.0,0.00031188,30]
[423336089,1780062659000,-500.0,0.00031188,30]
[423336093,1780062659000,-150.0,0.0003121,7]
[423336092,1780062659000,-700.296788,0.000312,7]
[423336095,1780062659000,-350.0,0.00031265,3]
[423336091,1780062659000,-189.622883,0.000312,7]
[423336083,1780062659000,-152.0,0.0003113,24]
[423336086,1780062659000,-996.0,0.00031184,8]
[423336072,1780062659000,-1000.0,0.00030973,14]
[423336051,1780062659000,-365.967116,0.000309,2]
[423336065,1780062659000,-1835.68642,0.00030925,13]
[423336050,1780062659000,-200.0,0.000309,11]
[423336053,1780062659000,-582.36115875,0.0003092,30]
[423336052,1780062659000,-1000.0,0.00030903,14]
[423336058,1780062659000,-1000.0,0.00030925,7]
[423336060,1780062659000,-1000.0,0.00030925,7]
[423336056,1780062659000,-1000.0,0.00030925,7]
[423336059,1780062659000,-1000.0,0.00030925,7]
[423336057,1780062659000,-1000.0,0.00030925,7]
[423336054,1780062659000,-1000.0,0.00030925,7]
[423336073,1780062659000,-1590.0,0.00030981,3]
[423336055,1780062659000,-1000.0,0.00030925,7]
[423336068,1780062659000,-300.0,0.00030959,8]
[423336069,1780062659000,-300.0,0.00030959,8]
[423336061,1780062659000,-437.93,0.00030925,7]
[423336071,1780062659000,-300.0,0.00030959,8]
[423336070,1780062659000,-300.0,0.00030959,8]
[423336064,1780062659000,-1835.68642,0.00030925,13]
[423336066,1780062659000,-188.44606373,0.00030927,2]
[423336067,1780062659000,-150.0,0.00030956,7]
[423336063,1780062659000,-1835.68642,0.00030925,13]
[423336094,1780062659000,-182.0,0.00031217,120]
[423336097,1780062659000,-163.0,0.00031276,3]
[423336062,1780062659000,-1835.68642,0.00030925,13]
[423336098,1780062659000,-2318.0,0.00031276,3]
[423336119,1780062659000,-585.29386708,0.00031345,7]
[423336129,1780062659000,-457.66138496,0.00031345,7]
[423336127,1780062659000,-707.32256884,0.00031345,7]
[423336130,1780062659000,-168.95311079,0.00031345,7]
[423336124,1780062659000,-636.35054888,0.00031345,7]
[423336128,1780062659000,-318.84988709,0.00031345,7]
[423336126,1780062659000,-822.26974318,0.00031345,7]
[423336131,1780062659000,-551.37323193,0.00031345,7]
[423336139,1780062659000,-751.00760413,0.00031353,7]
[423336123,1780062659000,-709.41380059,0.00031345,7]
[423336132,1780062659000,-798.8027429,0.00031345,7]
[423336142,1780062659000,-761.32363978,0.00031353,7]
[423336136,1780062659000,-560577.50430198,0.0003135,2]
[423336135,1780062659000,-159.15623701,0.00031349,2]
[423336134,1780062659000,-600.64699541,0.00031345,7]
[423336138,1780062659000,-340.66294342,0.00031353,7]
[423336133,1780062659000,-161.87142922,0.00031345,7]
[423336137,1780062659000,-342.74942695,0.00031353,7]
[423336143,1780062659000,-788.5794233,0.00031353,7]
[423336096,1780062659000,-163.0,0.00031276,3]
[423336141,1780062659000,-681.6472164,0.00031353,7]
[423336125,1780062659000,-648.14826849,0.00031345,7]
[423336140,1780062659000,-462.7893129,0.00031353,2]
[423336122,1780062659000,-324.43114156,0.00031345,7]
[423336121,1780062659000,-304.82514643,0.00031345,7]
[423336102,1780062659000,-2318.0,0.00031276,3]
[423336099,1780062659000,-1590.0,0.00031276,3]
[423336107,1780062659000,-163.29326204,0.00031345,7]
[423336101,1780062659000,-2318.0,0.00031276,3]
[423336105,1780062659000,-1590.0,0.00031277,3]
[423336103,1780062659000,-1590.0,0.00031276,3]
[423336106,1780062659000,-2318.0,0.00031277,3]
[423336104,1780062659000,-2318.0,0.00031277,3]
[423336109,1780062659000,-414.00856295,0.00031345,7]
[423336117,1780062659000,-173.0522868,0.00031345,7]
[423336100,1780062659000,-1590.0,0.00031276,3]
[423336118,1780062659000,-674.01179723,0.00031345,7]
[423336116,1780062659000,-554.63080055,0.00031345,7]
[423336115,1780062659000,-660.56526917,0.00031345,7]
[423336111,1780062659000,-677.64274398,0.00031345,7]
[423336108,1780062659000,-491.45959357,0.00031345,7]
[423336120,1780062659000,-166.39104305,0.00031345,7]
[423336110,1780062659000,-529.41031767,0.00031345,7]
[423336114,1780062659000,-618.10849409,0.00031345,7]
[423336113,1780062659000,-213.04846433,0.00031345,7]
[423336112,1780062659000,-159.34080076,0.00031345,7]
[423336181,1780062660000,-167.92382881,0.00031459,7]
[423336173,1780062660000,-745.73447689,0.00031459,7]
[423336171,1780062660000,-626.92583991,0.00031459,7]
[423336179,1780062660000,-730.12263541,0.00031459,2]
[423336170,1780062660000,-869.78135325,0.00031459,7]
[423336175,1780062660000,-160.42531756,0.00031459,7]
[423336172,1780062660000,-635.04399326,0.00031459,7]
[423336178,1780062660000,-170.14803788,0.00031459,7]
[423336176,1780062660000,-160.42531152,0.00031459,7]
[423336177,1780062660000,-160.70734615,0.00031459,7]
[423336180,1780062660000,-168.84292047,0.00031459,7]
[423336193,1780062660000,-587.82795927,0.00031459,7]
[423336189,1780062660000,-453.38015755,0.00031459,7]
[423336185,1780062660000,-161.5358857,0.00031459,7]
[423336190,1780062660000,-449.8075737,0.00031459,7]
[423336183,1780062660000,-308.75521843,0.00031459,7]
[423336184,1780062660000,-1313.42224828,0.00031459,7]
[423336187,1780062660000,-157.42799772,0.00031459,7]
[423336188,1780062660000,-165.55157232,0.00031459,7]
[423336201,1780062660000,-486.95905239,0.00031459,7]
[423336199,1780062660000,-170.79684311,0.00031459,7]
[423336200,1780062660000,-315.36925289,0.00031459,7]
[423336174,1780062660000,-501.52436015,0.00031459,7]
[423336182,1780062660000,-168.26811507,0.00031459,7]
[423336169,1780062660000,-164.02260231,0.00031459,7]
[423336146,1780062660000,-610.98904212,0.00031353,7]
[423336158,1780062660000,-164.94811919,0.00031371,7]
[423336144,1780062660000,-660.09473194,0.00031353,7]
[423336145,1780062660000,-809.01978244,0.00031353,7]
[423336196,1780062660000,-695.56136862,0.00031459,7]
[423336151,1780062660000,-717.04068803,0.00031354,7]
[423336147,1780062660000,-723.40083595,0.00031353,7]
[423336149,1780062660000,-165.12243611,0.00031353,7]
[423336148,1780062660000,-601.99193116,0.00031353,7]
[423336150,1780062660000,-740.66179622,0.00031354,7]
[423336152,1780062660000,-166.20206057,0.00031371,7]
[423336153,1780062660000,-523.42570188,0.00031371,7]
[423336155,1780062660000,-301.55018014,0.00031371,7]
[423336156,1780062660000,-823.24237418,0.00031371,7]
[423336154,1780062660000,-609.13872775,0.00031371,7]
[423336157,1780062660000,-555.81542163,0.00031371,2]
[423336159,1780062660000,-331.00823145,0.00031371,7]
[423336160,1780062660000,-708.05498156,0.00031371,7]
[423336162,1780062660000,-562.13129836,0.00031371,7]
[423336166,1780062660000,-163.0,0.0003143,3]
[423336163,1780062660000,-348.99946378,0.000314,30]
[423336161,1780062660000,-423.2260397,0.00031371,7]
[423336164,1780062660000,-1590.0,0.0003143,3]
[423336167,1780062660000,-324.03231756,0.00031459,7]
[423336165,1780062660000,-20232.87095048,0.0003143,4]
[423336168,1780062660000,-829.83953739,0.00031459,7]
[423336202,1780062660000,-168.87012776,0.00031459,7]
[423336186,1780062660000,-168.79279335,0.00031459,2]
[423336194,1780062660000,-389.94863677,0.00031459,7]
[423336220,1780062660000,-457.99628692,0.00031459,7]
[423336218,1780062660000,-635.26213049,0.00031459,7]
[423336229,1780062660000,-333.78511381,0.00031459,7]
[423336232,1780062660000,-384.50021525,0.00031459,7]
[423336230,1780062660000,-764.47911495,0.00031459,7]
[423336234,1780062660000,-325.99365082,0.00031459,7]
[423336235,1780062660000,-408.96463085,0.00031459,7]
[423336236,1780062660000,-561.87523418,0.00031459,2]
[423336239,1780062660000,-518.26482842,0.00031459,2]
[423336231,1780062660000,-167.50753875,0.00031459,7]
[423336237,1780062660000,-587.77991003,0.00031459,2]
[423336219,1780062660000,-506.07001486,0.00031459,7]
[423336238,1780062660000,-346.46281349,0.00031459,7]
[423336242,1780062660000,-160.42850854,0.00031459,7]
[423336241,1780062660000,-212.76995561,0.00031459,7]
[423336250,1780062660000,-160.49733697,0.00031459,7]
[423336244,1780062660000,-160.4253198,0.00031459,7]
[423336245,1780062660000,-613.76524063,0.00031459,7]
[423336248,1780062660000,-499.09612419,0.00031459,7]
[423336247,1780062660000,-160.45909009,0.00031459,7]
[423336246,1780062660000,-717.83360202,0.00031459,7]
[423336249,1780062660000,-160.42531587,0.00031459,7]
[423336243,1780062660000,-160.4253173,0.00031459,7]
[423336191,1780062660000,-164.41527313,0.00031459,7]
[423336240,1780062660000,-222.12062325,0.00031459,7]
[423336228,1780062660000,-827.17413021,0.00031459,5]
[423336233,1780062660000,-411.50549021,0.00031459,7]
[423336217,1780062660000,-155.5235617,0.00031459,7]
[423336197,1780062660000,-634.49126615,0.00031459,7]
[423336221,1780062660000,-1487.61035645,0.00031459,7]
[423336203,1780062660000,-770.11690927,0.00031459,7]
[423336198,1780062660000,-724.45466329,0.00031459,7]
[423336195,1780062660000,-304.58981375,0.00031459,7]
[423336192,1780062660000,-441.42006145,0.00031459,7]
[423336204,1780062660000,-700.19144759,0.00031459,7]
[423336207,1780062660000,-542.00010315,0.00031459,5]
[423336205,1780062660000,-160.49732895,0.00031459,7]
[423336208,1780062660000,-430.04676054,0.00031459,7]
[423336214,1780062660000,-327.18449977,0.00031459,7]
[423336210,1780062660000,-310.45099771,0.00031459,7]
[423336206,1780062660000,-823.57551348,0.00031459,7]
[423336226,1780062660000,-762.55292128,0.00031459,7]
[423336225,1780062660000,-448.01293799,0.00031459,7]
[423336211,1780062660000,-657.33416582,0.00031459,7]
[423336224,1780062660000,-584.46617492,0.00031459,7]
[423336227,1780062660000,-329.67752506,0.00031459,7]
[423336223,1780062660000,-164.96870002,0.00031459,2]
[423336222,1780062660000,-1153.67416936,0.00031459,7]
[423336215,1780062660000,-449.99939243,0.00031459,7]
[423336209,1780062660000,-796.42830105,0.00031459,7]
[423336213,1780062660000,-688.72185044,0.00031459,7]
[423336212,1780062660000,-1369.44397967,0.00031459,7]
[423336216,1780062660000,-406.19395241,0.00031459,7]
[423336290,1780062661000,-8250.8737628,0.00031619,30]
[423336286,1780062661000,-1590.0,0.00031596,3]
[423336298,1780062661000,-150.0,0.00031718,7]
[423336291,1780062661000,-1011.06,0.00031648,7]
[423336279,1780062661000,-200.87364833,0.000315,2]
[423336283,1780062661000,-163.0,0.00031596,3]
[423336284,1780062661000,-163.0,0.00031596,3]
[423336287,1780062661000,-2318.0,0.00031597,3]
[423336288,1780062661000,-150.0,0.00031605,14]
[423336289,1780062661000,-227.75,0.00031605,14]
[423336300,1780062661000,-996.0,0.00031739,9]
[423336285,1780062661000,-2318.0,0.00031596,3]
[423336297,1780062661000,-3000.0,0.00031708,60]
[423336302,1780062661000,-200.0,0.00031746,30]
[423336293,1780062661000,-2019.51,0.00031655,2]
[423336292,1780062661000,-1063.54,0.00031648,7]
[423336301,1780062661000,-500.1,0.00031743,3]
[423336294,1780062661000,-1590.0,0.00031663,3]
[423336295,1780062661000,-350.0,0.00031665,2]
[423336303,1780062661000,-200.0,0.00031746,20]
[423336307,1780062661000,-200.0,0.00031746,2]
[423336306,1780062661000,-200.0,0.00031746,3]
[423336304,1780062661000,-200.0,0.00031746,15]
[423336308,1780062661000,-200.0,0.00031746,2]
[423336305,1780062661000,-200.0,0.00031746,7]
[423336282,1780062661000,-188.44606373,0.00031578,2]
[423336299,1780062661000,-1590.0,0.00031737,3]
[423336280,1780062661000,-150.0,0.000315,2]
[423336251,1780062661000,-319.01564937,0.00031459,7]
[423336278,1780062661000,-150.0,0.00031464,7]
[423336311,1780062661000,-250.0,0.00031746,7]
[423336252,1780062661000,-522.34402998,0.00031459,7]
[423336253,1780062661000,-661.15135715,0.00031459,7]
[423336254,1780062661000,-402.80754317,0.00031459,7]
[423336256,1780062661000,-308.9980516,0.00031459,7]
[423336259,1780062661000,-306.56643812,0.00031459,7]
[423336255,1780062661000,-348.934414,0.00031459,7]
[423336258,1780062661000,-439.84777493,0.00031459,7]
[423336260,1780062661000,-160.49736034,0.00031459,7]
[423336261,1780062661000,-726.8315098,0.00031459,7]
[423336262,1780062661000,-170.45189406,0.00031459,7]
[423336257,1780062661000,-160.35581611,0.00031459,7]
[423336263,1780062661000,-1568.67215675,0.00031462,7]
[423336264,1780062661000,-301.5555004,0.00031464,7]
[423336277,1780062661000,-160.69199126,0.00031464,7]
[423336266,1780062661000,-160.42530055,0.00031464,7]
[423336265,1780062661000,-160.42531149,0.00031464,7]
[423336270,1780062661000,-160.42851735,0.00031464,7]
[423336275,1780062661000,-612.09059583,0.00031464,7]
[423336269,1780062661000,-301.40472437,0.00031464,7]
[423336271,1780062661000,-150.08748288,0.00031464,7]
[423336276,1780062661000,-835.34770017,0.00031464,7]
[423336273,1780062661000,-160.49731709,0.00031464,7]
[423336267,1780062661000,-160.42851659,0.00031464,7]
[423336272,1780062661000,-340.62168414,0.00031464,7]
[423336268,1780062661000,-160.42852072,0.00031464,7]
[423336274,1780062661000,-160.42531781,0.00031464,7]
[423336281,1780062661000,-152.0,0.00031506,25]
[423336312,1780062661000,-250.0,0.00031746,7]
[423336296,1780062661000,-152.0,0.00031703,15]
[423336309,1780062661000,-250.0,0.00031746,7]
[423336343,1780062661000,-1027.83717897,0.00031939,7]
[423336339,1780062661000,-772.63561762,0.00031939,7]
[423336340,1780062661000,-842.51474654,0.00031939,7]
[423336346,1780062661000,-998.50342862,0.00031939,7]
[423336342,1780062661000,-810.18533561,0.00031939,7]
[423336344,1780062661000,-884.15321105,0.00031939,7]
[423336347,1780062661000,-162.09619054,0.00031942,2]
[423336352,1780062661000,-925.82724528,0.00031948,7]
[423336350,1780062661000,-825.11841493,0.00031947,7]
[423336351,1780062661000,-752.48991395,0.00031947,7]
[423336361,1780062661000,-183.3,0.00031999,120]
[423336353,1780062661000,-896.30086004,0.00031948,7]
[423336360,1780062661000,-2318.0,0.00031983,3]
[423336356,1780062661000,-150.0,0.00031971,7]
[423336355,1780062661000,-885.06872695,0.00031965,7]
[423336357,1780062661000,-3000.0,0.00031982,60]
[423336354,1780062661000,-761.42340968,0.00031965,7]
[423336358,1780062661000,-500.0,0.00031982,60]
[423336359,1780062661000,-1590.0,0.00031983,3]
[423336363,1780062661000,-1023.15991572,0.00032,120]
[423336362,1780062661000,-777.46867565,0.00032,120]
[423336364,1780062661000,-1292.68633927,0.00032,120]
[423336367,1780062661000,-2910.12960998,0.00032,120]
[423336368,1780062661000,-1912.35784356,0.00032,120]
[423336369,1780062661000,-796.4344571,0.00032,120]
[423336366,1780062661000,-1270.5611212,0.00032,120]
[423336365,1780062661000,-3339.14890369,0.00032,120]
[423336345,1780062661000,-932.16809612,0.00031939,7]
[423336341,1780062661000,-886.76725074,0.00031939,7]
[423336310,1780062661000,-250.0,0.00031746,7]
[423336348,1780062661000,-852.0590205,0.00031947,7]
[423336337,1780062661000,-166.0,0.00031917,3]
[423336324,1780062661000,-1177.0,0.00031842,30]
[423336313,1780062661000,-1551.0,0.0003175,3]
[423336314,1780062661000,-2763.0,0.00031837,30]
[423336317,1780062661000,-417.0,0.00031839,30]
[423336319,1780062661000,-5486.0,0.00031839,30]
[423336321,1780062661000,-2000.0,0.00031839,2]
[423336322,1780062661000,-1590.0,0.0003184,3]
[423336316,1780062661000,-2554.0,0.00031839,30]
[423336318,1780062661000,-912.0,0.00031839,30]
[423336323,1780062661000,-2367.0,0.0003184,3]
[423336320,1780062661000,-838.0,0.00031839,30]
[423336326,1780062661000,-731.0,0.00031842,30]
[423336315,1780062661000,-340.0,0.00031837,30]
[423336325,1780062661000,-1489.0,0.00031842,30]
[423336370,1780062661000,-299.53451796,0.00032,120]
[423336338,1780062661000,-1722.98,0.00031926,7]
[423336332,1780062661000,-3500.0,0.000319,11]
[423336335,1780062661000,-738.0,0.00031917,3]
[423336334,1780062661000,-1590.0,0.00031917,3]
[423336331,1780062661000,-9928.921,0.000319,2]
[423336333,1780062661000,-2318.0,0.00031916,3]
[423336349,1780062661000,-951.65454972,0.00031947,7]
[423336328,1780062661000,-150.0,0.00031858,2]
[423336329,1780062661000,-152.0,0.00031882,26]
[423336336,1780062661000,-2318.0,0.00031917,3]
[423336327,1780062661000,-2729.0,0.00031842,30]
[423336330,1780062661000,-200.0,0.000319,12]
[423336412,1780062662000,-1154.13771922,0.00032044,7]
[423336417,1780062662000,-151.0,0.00032044,7]
[423336416,1780062662000,-151.0,0.00032044,7]
[423336414,1780062662000,-667.030463,0.00032044,7]
[423336405,1780062662000,-151.0,0.00032044,7]
[423336408,1780062662000,-1154.137718,0.00032044,7]
[423336400,1780062662000,-171.734091,0.00032041,7]
[423336404,1780062662000,-151.0,0.00032044,7]
[423336409,1780062662000,-1154.137718,0.00032044,7]
[423336410,1780062662000,-1154.137718,0.00032044,7]
[423336411,1780062662000,-667.030463,0.00032044,7]
[423336406,1780062662000,-151.0,0.00032044,7]
[423336413,1780062662000,-667.030463,0.00032044,7]
[423336431,1780062662000,-3141.402971,0.00032044,7]
[423336415,1780062662000,-667.030467,0.00032044,7]
[423336423,1780062662000,-1298.758075,0.00032044,7]
[423336418,1780062662000,-674.088751,0.00032044,7]
[423336419,1780062662000,-674.088751,0.00032044,7]
[423336420,1780062662000,-674.088751,0.00032044,7]
[423336421,1780062662000,-674.088743,0.00032044,7]
[423336436,1780062662000,-3141.402971,0.00032044,7]
[423336425,1780062662000,-1298.758079,0.00032044,7]
[423336435,1780062662000,-923.097563,0.00032044,7]
[423336426,1780062662000,-4431.499608,0.00032044,7]
[423336424,1780062662000,-1298.758075,0.00032044,7]
[423336427,1780062662000,-4431.499608,0.00032044,7]
[423336403,1780062662000,-151.0,0.00032044,7]
[423336429,1780062662000,-4431.499617,0.00032044,7]
[423336422,1780062662000,-1298.758075,0.00032044,7]
[423336407,1780062662000,-263.088574,0.00032044,7]
[423336387,1780062662000,-6580.74,0.00032,7]
[423336402,1780062662000,-181.768492,0.00032044,7]
[423336373,1780062662000,-1227.84116091,0.00032,120]
[423336432,1780062662000,-923.097563,0.00032044,7]
[423336371,1780062662000,-1433.17342142,0.00032,120]
[423336372,1780062662000,-725.69635273,0.00032,120]
[423336377,1780062662000,-2806.09382132,0.00032,120]
[423336376,1780062662000,-1209.27562208,0.00032,120]
[423336386,1780062662000,-359.23837095,0.00032,120]
[423336375,1780062662000,-874.45962445,0.00032,120]
[423336379,1780062662000,-520.60782192,0.00032,120]
[423336378,1780062662000,-1529.41072453,0.00032,120]
[423336382,1780062662000,-669.19242642,0.00032,120]
[423336385,1780062662000,-618.22068716,0.00032,120]
[423336383,1780062662000,-1315.31716732,0.00032,120]
[423336401,1780062662000,-151.0,0.00032044,7]
[423336381,1780062662000,-1025.66211653,0.00032,120]
[423336380,1780062662000,-3983.71500786,0.00032,120]
[423336388,1780062662000,-3699.58,0.00032,7]
[423336398,1780062662000,-668.65185756,0.00032026,2]
[423336390,1780062662000,-6574.14597932,0.00032,120]
[423336389,1780062662000,-160.0,0.00032,120]
[423336391,1780062662000,-1762.99244633,0.00032,2]
[423336394,1780062662000,-1312.66445638,0.00032,30]
[423336392,1780062662000,-178.087383,0.00032,120]